[Event "Titled Tuesday Blitz January 17 Late 2023"]
[White "Gatterer, Florian"]
[Black "Graif, William"]
[WhiteFideId "811688"]
[BlackFideId "2609835"]
[WhiteElo "2170"]
[BlackElo "2304"]
[Result "0-1"]
[Round "10"]
[TimeControl "180+2"]
[Date "2023.01.17"]
[WhiteClock "0:00:02"]
[BlackClock "0:00:22"]

1. c4 {[%clk 0:03:00]}  a6 {[%clk 0:02:57]} 2. Nf3 {[%clk 0:03:00]}  e6 {[%clk 0:02:51]} 3. g3 {[%clk 0:02:58]}  d5 {[%clk 0:02:50]} 4. b3 {[%clk 0:02:56]}  d4 {[%clk 0:02:32]} 5. Bb2 {[%clk 0:02:54]}  Nc6 {[%clk 0:02:29]} 6. Bg2 {[%clk 0:02:55]}  e5 {[%clk 0:02:29]} 7. d3 {[%clk 0:02:53]}  Nf6 {[%clk 0:02:23]} 8. O-O {[%clk 0:02:53]}  Bd6 {[%clk 0:02:09]} 9. e3 {[%clk 0:02:48]}  Be7 {[%clk 0:01:54]} 10. exd4 {[%clk 0:02:43]}  exd4 {[%clk 0:01:55]} 11. h3 {[%clk 0:02:44]}  O-O {[%clk 0:01:53]} 12. a3 {[%clk 0:02:44]}  a5 {[%clk 0:01:52]} 13. Nbd2 {[%clk 0:02:44]}  Bf5 {[%clk 0:01:50]} 14. Qc2 {[%clk 0:02:44]}  Qd6 {[%clk 0:01:37]} 15. Nh4 {[%clk 0:02:38]}  Be6 {[%clk 0:01:34]} 16. Nhf3 {[%clk 0:02:33]}  Rad8 {[%clk 0:01:31]} 17. Rfe1 {[%clk 0:02:32]}  h6 {[%clk 0:01:29]} 18. Ne4 {[%clk 0:02:29]}  Nxe4 {[%clk 0:01:29]} 19. Rxe4 {[%clk 0:02:30]}  Bf6 {[%clk 0:01:24]} 20. Re2 {[%clk 0:02:21]}  Rfe8 {[%clk 0:01:16]} 21. Rae1 {[%clk 0:02:19]}  Re7 {[%clk 0:01:12]} 22. Nd2 {[%clk 0:02:16]}  Bf5 {[%clk 0:01:07]} 23. Rxe7 {[%clk 0:02:04]}  Bxe7 {[%clk 0:01:03]} 24. Ne4 {[%clk 0:01:56]}  Qd7 {[%clk 0:01:02]} 25. Kh2 {[%clk 0:01:53]}  Re8 {[%clk 0:01:00]} 26. Qd2 {[%clk 0:01:21]}  Ne5 {[%clk 0:00:55]} 27. Qd1 {[%clk 0:01:17]}  b6 {[%clk 0:00:52]} 28. g4 {[%clk 0:01:06]}  Bg6 {[%clk 0:00:51]} 29. f4 {[%clk 0:01:05]}  Nc6 {[%clk 0:00:47]} 30. f5 {[%clk 0:01:04]}  Bh7 {[%clk 0:00:46]} 31. Kh1 {[%clk 0:01:00]}  Ne5 {[%clk 0:00:45]} 32. Bc1 {[%clk 0:00:56]}  Bh4 {[%clk 0:00:43]} 33. Rf1 {[%clk 0:00:52]}  f6 {[%clk 0:00:42]} 34. b4 {[%clk 0:00:46]}  axb4 {[%clk 0:00:42]} 35. axb4 {[%clk 0:00:47]}  Qc8 {[%clk 0:00:38]} 36. c5 {[%clk 0:00:45]}  Qa6 {[%clk 0:00:37]} 37. cxb6 {[%clk 0:00:35]}  cxb6 {[%clk 0:00:31]} 38. Nd6 {[%clk 0:00:33]}  Rd8 {[%clk 0:00:30]} 39. Bd5+ {[%clk 0:00:24]}  Kf8 {[%clk 0:00:29]} 40. Bc4 {[%clk 0:00:19]}  Nxc4 {[%clk 0:00:26]} 41. Nxc4 {[%clk 0:00:19]}  Qb7+ {[%clk 0:00:25]} 42. Qf3 {[%clk 0:00:17]}  Qxf3+ {[%clk 0:00:24]} 43. Rxf3 {[%clk 0:00:18]}  Bg8 {[%clk 0:00:24]} 44. Bf4 {[%clk 0:00:16]}  Bd5 {[%clk 0:00:24]} 45. Kg2 {[%clk 0:00:14]}  Re8 {[%clk 0:00:23]} 46. Bd6+ {[%clk 0:00:10]}  Kg8 {[%clk 0:00:22]} 47. Kf1 {[%clk 0:00:02]}  Bxf3 {[%clk 0:00:22]} 0-1


[Site "https://www.chess.com"]

[Event "Titled Tuesday Blitz January 17 Late 2023"]
[White "Artemenko, Oleg"]
[Black "Figorito, Nick"]
[WhiteFideId "14201798"]
[BlackFideId "30923689"]
[WhiteElo "2246"]
[BlackElo "2036"]
[Result "1-0"]
[Round "10"]
[TimeControl "180+2"]
[Date "2023.01.17"]
[WhiteClock "0:00:03"]
[BlackClock "0:00:13"]

1. e4 {[%clk 0:03:00]}  e6 {[%clk 0:03:00]} 2. d4 {[%clk 0:03:00]}  d5 {[%clk 0:03:00]} 3. exd5 {[%clk 0:03:01]}  exd5 {[%clk 0:03:00]} 4. c4 {[%clk 0:03:01]}  Nf6 {[%clk 0:03:00]} 5. Nc3 {[%clk 0:03:01]}  Be7 {[%clk 0:03:00]} 6. Nf3 {[%clk 0:03:01]}  O-O {[%clk 0:03:01]} 7. Bf4 {[%clk 0:03:00]}  c6 {[%clk 0:02:59]} 8. h3 {[%clk 0:02:59]}  Nbd7 {[%clk 0:02:56]} 9. Be2 {[%clk 0:02:58]}  dxc4 {[%clk 0:02:56]} 10. Bxc4 {[%clk 0:02:58]}  Nb6 {[%clk 0:02:57]} 11. Bd3 {[%clk 0:02:58]}  Nbd5 {[%clk 0:02:57]} 12. Bd2 {[%clk 0:02:58]}  Be6 {[%clk 0:02:51]} 13. O-O {[%clk 0:02:58]}  h6 {[%clk 0:02:51]} 14. a3 {[%clk 0:02:57]}  Bd6 {[%clk 0:02:51]} 15. Re1 {[%clk 0:02:57]}  Re8 {[%clk 0:02:51]} 16. Qc2 {[%clk 0:02:57]}  Qc7 {[%clk 0:02:45]} 17. Ne5 {[%clk 0:02:54]}  Nd7 {[%clk 0:02:33]} 18. Nxd7 {[%clk 0:02:45]}  Qxd7 {[%clk 0:02:31]} 19. Rad1 {[%clk 0:02:43]}  Nf4 {[%clk 0:02:22]} 20. Bf1 {[%clk 0:02:33]}  Bc7 {[%clk 0:02:14]} 21. Ne4 {[%clk 0:02:29]}  Bf5 {[%clk 0:02:02]} 22. Bxf4 {[%clk 0:02:09]}  Bxf4 {[%clk 0:01:59]} 23. f3 {[%clk 0:02:01]}  Bg3 {[%clk 0:01:50]} 24. Re2 {[%clk 0:01:49]}  Bc7 {[%clk 0:01:49]} 25. Red2 {[%clk 0:01:20]}  Bb6 {[%clk 0:01:39]} 26. b4 {[%clk 0:01:11]}  a5 {[%clk 0:01:35]} 27. Kh1 {[%clk 0:01:09]}  axb4 {[%clk 0:01:34]} 28. axb4 {[%clk 0:01:10]}  Qe7 {[%clk 0:01:26]} 29. d5 {[%clk 0:00:56]}  cxd5 {[%clk 0:01:23]} 30. Rxd5 {[%clk 0:00:54]}  Bxe4 {[%clk 0:01:23]} 31. fxe4 {[%clk 0:00:55]}  Qxe4 {[%clk 0:01:23]} 32. Qxe4 {[%clk 0:00:47]}  Rxe4 {[%clk 0:01:24]} 33. Rd7 {[%clk 0:00:48]}  Rxb4 {[%clk 0:01:14]} 34. Rxb7 {[%clk 0:00:44]}  Bc5 {[%clk 0:01:02]} 35. Rc7 {[%clk 0:00:41]}  Rd4 {[%clk 0:00:57]} 36. Rb1 {[%clk 0:00:33]}  Bd6 {[%clk 0:00:56]} 37. Rd7 {[%clk 0:00:32]}  Be5 {[%clk 0:00:51]} 38. Re7 {[%clk 0:00:30]}  Bf6 {[%clk 0:00:50]} 39. Rc7 {[%clk 0:00:30]}  Be5 {[%clk 0:00:48]} 40. Re7 {[%clk 0:00:26]}  Bf6 {[%clk 0:00:44]} 41. Reb7 {[%clk 0:00:23]}  Rad8 {[%clk 0:00:43]} 42. Kg1 {[%clk 0:00:17]}  Rd1 {[%clk 0:00:38]} 43. Rb8 {[%clk 0:00:16]}  Bd4+ {[%clk 0:00:29]} 44. Kh1 {[%clk 0:00:12]}  Rxb8 {[%clk 0:00:25]} 45. Rxd1 {[%clk 0:00:10]}  Bf6 {[%clk 0:00:24]} 46. g3 {[%clk 0:00:08]}  Rd8 {[%clk 0:00:23]} 47. Re1 {[%clk 0:00:07]}  Kf8 {[%clk 0:00:20]} 48. h4 {[%clk 0:00:07]}  Re8 {[%clk 0:00:20]} 49. Rd1 {[%clk 0:00:05]}  Kg8 {[%clk 0:00:20]} 50. Kh2 {[%clk 0:00:05]}  Rd8 {[%clk 0:00:20]} 51. Re1 {[%clk 0:00:05]}  Bc3 {[%clk 0:00:19]} 52. Re3 {[%clk 0:00:05]}  Bd4 {[%clk 0:00:19]} 53. Rf3 {[%clk 0:00:05]}  Re8 {[%clk 0:00:18]} 54. Bc4 {[%clk 0:00:06]}  Re7 {[%clk 0:00:17]} 55. Kh3 {[%clk 0:00:06]}  Bf6 {[%clk 0:00:17]} 56. g4 {[%clk 0:00:06]}  g5 {[%clk 0:00:15]} 57. Rxf6 {[%clk 0:00:05]}  Re3+ {[%clk 0:00:14]} 58. Kg2 {[%clk 0:00:05]}  gxh4 {[%clk 0:00:13]} 59. Rxf7 {[%clk 0:00:04]}  Rc3 {[%clk 0:00:07]} 60. Rc7+ {[%clk 0:00:04]}  Kf8 {[%clk 0:00:06]} 61. Rc6 {[%clk 0:00:04]}  Rc2+ {[%clk 0:00:06]} 62. Kh3 {[%clk 0:00:05]}  Rc3+ {[%clk 0:00:07]} 63. Kxh4 {[%clk 0:00:05]}  Ke8 {[%clk 0:00:08]} 64. Bd5 {[%clk 0:00:05]}  Ke7 {[%clk 0:00:08]} 65. Rxc3 {[%clk 0:00:05]}  Kf6 {[%clk 0:00:09]} 66. Kh5 {[%clk 0:00:05]}  Kg7 {[%clk 0:00:10]} 67. Rc7+ {[%clk 0:00:06]}  Kh8 {[%clk 0:00:11]} 68. Be4 {[%clk 0:00:03]}  Kg8 {[%clk 0:00:11]} 69. Kxh6 {[%clk 0:00:04]}  Kf8 {[%clk 0:00:12]} 70. Bc6 {[%clk 0:00:03]}  Kg8 {[%clk 0:00:11]} 71. Kg6 {[%clk 0:00:04]}  Kf8 {[%clk 0:00:12]} 72. Bb5 {[%clk 0:00:03]}  Kg8 {[%clk 0:00:13]} 73. Rc8# {[%clk 0:00:03]} 1-0


[Site "https://www.chess.com"]

[Event "Titled Tuesday Blitz January 17 Late 2023"]
[White "Gerbelli Neto, Eduardo"]
[Black "Pein, Jonathan"]
[WhiteFideId "2103281"]
[BlackFideId "417092"]
[WhiteElo "2114"]
[BlackElo "2265"]
[Result "0-1"]
[Round "10"]
[TimeControl "180+2"]
[Date "2023.01.17"]
[WhiteClock "0:00:10"]
[BlackClock "0:00:11"]

1. e4 {[%clk 0:03:00]}  c5 {[%clk 0:02:58]} 2. Nc3 {[%clk 0:03:00]}  Nc6 {[%clk 0:02:54]} 3. f4 {[%clk 0:03:00]}  g6 {[%clk 0:02:46]} 4. Nf3 {[%clk 0:02:59]}  Bg7 {[%clk 0:02:46]} 5. Bc4 {[%clk 0:03:00]}  e6 {[%clk 0:02:47]} 6. f5 {[%clk 0:03:00]}  gxf5 {[%clk 0:02:46]} 7. d3 {[%clk 0:03:00]}  Nge7 {[%clk 0:02:44]} 8. O-O {[%clk 0:03:00]}  Na5 {[%clk 0:02:43]} 9. Bg5 {[%clk 0:02:52]}  Nxc4 {[%clk 0:02:43]} 10. dxc4 {[%clk 0:02:53]}  h6 {[%clk 0:02:19]} 11. Bh4 {[%clk 0:02:52]}  Bxc3 {[%clk 0:01:52]} 12. bxc3 {[%clk 0:02:51]}  Qb6 {[%clk 0:01:53]} 13. Bxe7 {[%clk 0:02:26]}  Kxe7 {[%clk 0:01:54]} 14. exf5 {[%clk 0:02:26]}  d6 {[%clk 0:01:52]} 15. Qe1 {[%clk 0:02:20]}  Bd7 {[%clk 0:01:40]} 16. Qh4+ {[%clk 0:02:20]}  Ke8 {[%clk 0:01:39]} 17. Qf6 {[%clk 0:02:17]}  Rf8 {[%clk 0:01:39]} 18. Rae1 {[%clk 0:02:12]}  Qd8 {[%clk 0:01:38]} 19. Qxh6 {[%clk 0:02:11]}  Qe7 {[%clk 0:01:36]} 20. f6 {[%clk 0:02:04]}  Qd8 {[%clk 0:01:30]} 21. Ng5 {[%clk 0:02:04]}  Bc6 {[%clk 0:01:25]} 22. Nxe6 {[%clk 0:01:28]}  fxe6 {[%clk 0:01:23]} 23. Rxe6+ {[%clk 0:01:04]}  Kd7 {[%clk 0:01:22]} 24. Qh3 {[%clk 0:00:56]}  Kc7 {[%clk 0:01:22]} 25. Re7+ {[%clk 0:00:44]}  Kb6 {[%clk 0:01:11]} 26. Rb1+ {[%clk 0:00:42]}  Ka6 {[%clk 0:01:09]} 27. Qe6 {[%clk 0:00:39]}  Rg8 {[%clk 0:00:54]} 28. g3 {[%clk 0:00:39]}  Qc8 {[%clk 0:00:50]} 29. Qxd6 {[%clk 0:00:30]}  Qh3 {[%clk 0:00:49]} 30. Re2 {[%clk 0:00:24]}  Rad8 {[%clk 0:00:37]} 31. Qf4 {[%clk 0:00:20]}  Rde8 {[%clk 0:00:26]} 32. Rbe1 {[%clk 0:00:18]}  Rg4 {[%clk 0:00:19]} 33. Qf2 {[%clk 0:00:15]}  Reg8 {[%clk 0:00:16]} 34. f7 {[%clk 0:00:16]}  Rxg3+ {[%clk 0:00:15]} 35. hxg3 {[%clk 0:00:16]}  Rxg3+ {[%clk 0:00:16]} 36. Qxg3 {[%clk 0:00:13]}  Qxg3+ {[%clk 0:00:16]} 37. Kf1 {[%clk 0:00:14]}  Qh3+ {[%clk 0:00:15]} 38. Kg1 {[%clk 0:00:14]}  Qh1+ {[%clk 0:00:15]} 39. Kf2 {[%clk 0:00:14]}  Qf3+ {[%clk 0:00:14]} 40. Kg1 {[%clk 0:00:14]}  Qh1+ {[%clk 0:00:13]} 41. Kf2 {[%clk 0:00:14]}  Qf3+ {[%clk 0:00:12]} 42. Kg1 {[%clk 0:00:14]}  Qxf7 {[%clk 0:00:13]} 43. Rf2 {[%clk 0:00:10]}  Qg8+ {[%clk 0:00:11]} 44. Kf1 {[%clk 0:00:10]}  Qxc4+ {[%clk 0:00:12]} 45. Kg1 {[%clk 0:00:10]}  Qg4+ {[%clk 0:00:12]} 46. Kf1 {[%clk 0:00:10]}  Bb5+ {[%clk 0:00:11]} 0-1


[Site "https://www.chess.com"]

[Event "Titled Tuesday Blitz January 17 Late 2023"]
[White "Forgacs, Attila Jr."]
[Black "Gasparyan, David"]
[WhiteFideId "773654"]
[BlackFideId "13311980"]
[WhiteElo "2264"]
[BlackElo "2142"]
[Result "1-0"]
[Round "10"]
[TimeControl "180+2"]
[Date "2023.01.17"]
[WhiteClock "0:01:53"]
[BlackClock "0:02:17"]

1. e4 {[%clk 0:03:00]}  a5 {[%clk 0:02:59]} 2. d4 {[%clk 0:03:00]}  a4 {[%clk 0:02:59]} 3. Bc4 {[%clk 0:02:58]}  e6 {[%clk 0:03:00]} 4. f4 {[%clk 0:02:56]}  d5 {[%clk 0:02:59]} 5. exd5 {[%clk 0:02:55]}  exd5 {[%clk 0:03:00]} 6. Bd3 {[%clk 0:02:55]}  Nf6 {[%clk 0:02:59]} 7. Nf3 {[%clk 0:02:55]}  Be7 {[%clk 0:02:57]} 8. O-O {[%clk 0:02:55]}  c6 {[%clk 0:02:56]} 9. c3 {[%clk 0:02:55]}  Nbd7 {[%clk 0:02:54]} 10. f5 {[%clk 0:02:50]}  b5 {[%clk 0:02:51]} 11. Bf4 {[%clk 0:02:48]}  Qb6 {[%clk 0:02:50]} 12. Kh1 {[%clk 0:02:45]}  Bb7 {[%clk 0:02:48]} 13. Nbd2 {[%clk 0:02:44]}  O-O-O {[%clk 0:02:48]} 14. b3 {[%clk 0:02:42]}  a3 {[%clk 0:02:47]} 15. c4 {[%clk 0:02:38]}  b4 {[%clk 0:02:47]} 16. cxd5 {[%clk 0:02:32]}  Nxd5 {[%clk 0:02:47]} 17. Nc4 {[%clk 0:02:29]}  Qa7 {[%clk 0:02:44]} 18. Bg3 {[%clk 0:02:22]}  h5 {[%clk 0:02:36]} 19. Rc1 {[%clk 0:02:20]}  h4 {[%clk 0:02:35]} 20. Bd6 {[%clk 0:02:17]}  Bf6 {[%clk 0:02:34]} 21. Nce5 {[%clk 0:02:13]}  Ne3 {[%clk 0:02:31]} 22. Nxc6 {[%clk 0:02:10]}  Bxc6 {[%clk 0:02:26]} 23. Rxc6+ {[%clk 0:02:09]}  Kb7 {[%clk 0:02:26]} 24. Rc7+ {[%clk 0:02:09]}  Kb6 {[%clk 0:02:26]} 25. Qc1 {[%clk 0:01:57]}  Rc8 {[%clk 0:02:18]} 26. Qc6+ {[%clk 0:01:53]}  Ka5 {[%clk 0:02:17]} 27. Qb5# {[%clk 0:01:53]} 1-0


[Site "https://www.chess.com"]

[Event "Titled Tuesday Blitz January 17 Late 2023"]
[White "Khandelwal, Ankush"]
[Black "Slavin, Alexey"]
[WhiteFideId "413470"]
[BlackFideId "24104388"]
[WhiteElo "2205"]
[BlackElo "2364"]
[Result "1-0"]
[Round "10"]
[TimeControl "180+2"]
[Date "2023.01.17"]
[WhiteClock "0:00:12"]
[BlackClock "0:00:16"]

1. e4 {[%clk 0:03:00]}  Nc6 {[%clk 0:03:00]} 2. Nf3 {[%clk 0:03:00]}  d6 {[%clk 0:03:00]} 3. d4 {[%clk 0:02:51]}  Nf6 {[%clk 0:03:00]} 4. d5 {[%clk 0:02:48]}  Ne5 {[%clk 0:02:59]} 5. Nxe5 {[%clk 0:02:47]}  dxe5 {[%clk 0:02:59]} 6. Nc3 {[%clk 0:02:46]}  a6 {[%clk 0:02:59]} 7. Be2 {[%clk 0:02:42]}  e6 {[%clk 0:02:59]} 8. a3 {[%clk 0:02:30]}  Be7 {[%clk 0:02:55]} 9. O-O {[%clk 0:02:29]}  O-O {[%clk 0:02:55]} 10. Be3 {[%clk 0:02:29]}  h6 {[%clk 0:02:47]} 11. Kh1 {[%clk 0:02:26]}  b5 {[%clk 0:02:35]} 12. f4 {[%clk 0:02:25]}  exf4 {[%clk 0:02:32]} 13. Bxf4 {[%clk 0:02:26]}  exd5 {[%clk 0:02:32]} 14. exd5 {[%clk 0:02:26]}  Bb7 {[%clk 0:02:31]} 15. Bf3 {[%clk 0:02:26]}  Bd6 {[%clk 0:02:29]} 16. Qd4 {[%clk 0:02:11]}  Re8 {[%clk 0:02:21]} 17. Rad1 {[%clk 0:02:04]}  Qd7 {[%clk 0:02:20]} 18. Bxh6 {[%clk 0:02:02]}  Be5 {[%clk 0:02:20]} 19. Qh4 {[%clk 0:01:54]}  gxh6 {[%clk 0:02:16]} 20. Qxh6 {[%clk 0:01:55]}  Nh7 {[%clk 0:02:08]} 21. Be4 {[%clk 0:01:46]}  f5 {[%clk 0:01:47]} 22. Bxf5 {[%clk 0:01:44]}  Qg7 {[%clk 0:01:47]} 23. Qh5 {[%clk 0:00:58]}  Nf6 {[%clk 0:01:26]} 24. Qh4 {[%clk 0:00:58]}  Bc8 {[%clk 0:01:11]} 25. Rd3 {[%clk 0:00:54]}  Bxf5 {[%clk 0:01:04]} 26. Rxf5 {[%clk 0:00:55]}  Bxc3 {[%clk 0:00:57]} 27. Rxc3 {[%clk 0:00:30]}  Re4 {[%clk 0:00:49]} 28. Qf2 {[%clk 0:00:17]}  Rae8 {[%clk 0:00:46]} 29. h3 {[%clk 0:00:17]}  Nh5 {[%clk 0:00:27]} 30. Rxh5 {[%clk 0:00:14]}  Qf7 {[%clk 0:00:19]} 31. Rg3+ {[%clk 0:00:13]}  Kf8 {[%clk 0:00:17]} 32. Rf5 {[%clk 0:00:13]}  Re3 {[%clk 0:00:16]} 33. Rxf7# {[%clk 0:00:12]} 1-0


[Site "https://www.chess.com"]

[Event "Titled Tuesday Blitz January 17 Late 2023"]
[White "Rios Escobar, Adan"]
[Black "Sanchez, Robert"]
[WhiteFideId "3403645"]
[BlackFideId "2034360"]
[WhiteElo "2234"]
[BlackElo "1966"]
[Result "1-0"]
[Round "10"]
[TimeControl "180+2"]
[Date "2023.01.17"]
[WhiteClock "0:00:39"]
[BlackClock "0:00:07"]

1. d4 {[%clk 0:02:54]}  Nf6 {[%clk 0:02:38]} 2. g3 {[%clk 0:02:53]}  e6 {[%clk 0:02:39]} 3. c4 {[%clk 0:02:53]}  d5 {[%clk 0:02:39]} 4. Nf3 {[%clk 0:02:53]}  Be7 {[%clk 0:02:40]} 5. Bg2 {[%clk 0:02:54]}  c6 {[%clk 0:02:40]} 6. O-O {[%clk 0:02:54]}  O-O {[%clk 0:02:41]} 7. Qc2 {[%clk 0:02:54]}  Nbd7 {[%clk 0:02:41]} 8. Nbd2 {[%clk 0:02:54]}  c5 {[%clk 0:02:39]} 9. cxd5 {[%clk 0:02:49]}  exd5 {[%clk 0:02:36]} 10. a3 {[%clk 0:02:47]}  cxd4 {[%clk 0:02:30]} 11. Nxd4 {[%clk 0:02:47]}  Nc5 {[%clk 0:02:29]} 12. b4 {[%clk 0:02:46]}  Nce4 {[%clk 0:02:23]} 13. Bb2 {[%clk 0:02:46]}  Nxd2 {[%clk 0:02:13]} 14. Qxd2 {[%clk 0:02:47]}  Ne4 {[%clk 0:02:11]} 15. Qd3 {[%clk 0:02:40]}  Ng5 {[%clk 0:02:00]} 16. h4 {[%clk 0:02:31]}  Ne4 {[%clk 0:01:51]} 17. Rfd1 {[%clk 0:02:18]}  f5 {[%clk 0:01:44]} 18. e3 {[%clk 0:02:13]}  Bf6 {[%clk 0:01:24]} 19. Rac1 {[%clk 0:02:10]}  Bd7 {[%clk 0:01:18]} 20. Qb3 {[%clk 0:02:09]}  Qe8 {[%clk 0:01:00]} 21. Qxd5+ {[%clk 0:02:05]}  Kh8 {[%clk 0:01:00]} 22. Qxb7 {[%clk 0:01:48]}  Ba4 {[%clk 0:00:47]} 23. Re1 {[%clk 0:01:23]}  Qh5 {[%clk 0:00:30]} 24. Ba1 {[%clk 0:01:18]}  Rae8 {[%clk 0:00:14]} 25. Qxa7 {[%clk 0:01:14]}  Ra8 {[%clk 0:00:14]} 26. Qc7 {[%clk 0:01:12]}  Nd2 {[%clk 0:00:10]} 27. Ne6 {[%clk 0:01:07]}  Rf7 {[%clk 0:00:07]} 28. Qc8+ {[%clk 0:00:39]} 1-0


[Site "https://www.chess.com"]

[Event "Titled Tuesday Blitz January 17 Late 2023"]
[White "Castellanos Hernandez, Emilio Au"]
[Black "Mosquera, Miguel"]
[WhiteFideId "5114179"]
[BlackFideId "4401131"]
[WhiteElo "1964"]
[BlackElo "2371"]
[Result "1-0"]
[Round "10"]
[TimeControl "180+2"]
[Date "2023.01.17"]
[WhiteClock "0:00:21"]
[BlackClock "0:00:05"]

1. d4 {[%clk 0:03:00]}  d5 {[%clk 0:03:00]} 2. Bf4 {[%clk 0:03:01]}  e6 {[%clk 0:02:56]} 3. e3 {[%clk 0:03:01]}  Bd6 {[%clk 0:02:56]} 4. Nf3 {[%clk 0:02:57]}  Nf6 {[%clk 0:02:54]} 5. Nbd2 {[%clk 0:02:57]}  Bxf4 {[%clk 0:02:54]} 6. exf4 {[%clk 0:02:58]}  b6 {[%clk 0:02:53]} 7. c3 {[%clk 0:02:56]}  c6 {[%clk 0:02:51]} 8. Ne5 {[%clk 0:02:55]}  Qc7 {[%clk 0:02:48]} 9. h4 {[%clk 0:02:45]}  h5 {[%clk 0:02:45]} 10. Rc1 {[%clk 0:02:23]}  a5 {[%clk 0:02:38]} 11. Qf3 {[%clk 0:02:17]}  Nbd7 {[%clk 0:02:20]} 12. Bd3 {[%clk 0:02:15]}  Ba6 {[%clk 0:02:16]} 13. O-O {[%clk 0:02:11]}  Bxd3 {[%clk 0:02:09]} 14. Nxd3 {[%clk 0:02:09]}  O-O {[%clk 0:02:06]} 15. Rce1 {[%clk 0:02:05]}  Ng4 {[%clk 0:01:48]} 16. g3 {[%clk 0:02:00]}  c5 {[%clk 0:01:44]} 17. Ne5 {[%clk 0:01:58]}  Ndf6 {[%clk 0:01:39]} 18. f5 {[%clk 0:01:53]}  cxd4 {[%clk 0:01:35]} 19. cxd4 {[%clk 0:01:52]}  Qc2 {[%clk 0:01:30]} 20. fxe6 {[%clk 0:01:25]}  fxe6 {[%clk 0:01:11]} 21. Qd3 {[%clk 0:01:12]}  Rac8 {[%clk 0:00:59]} 22. Ndf3 {[%clk 0:01:00]}  Ne4 {[%clk 0:00:45]} 23. Ng5 {[%clk 0:00:37]}  Nxg5 {[%clk 0:00:22]} 24. hxg5 {[%clk 0:00:33]}  Rxf2 {[%clk 0:00:17]} 25. Qxc2 {[%clk 0:00:29]}  Rcxc2 {[%clk 0:00:17]} 26. Nxg4 {[%clk 0:00:28]}  Rg2+ {[%clk 0:00:18]} 27. Kh1 {[%clk 0:00:29]}  hxg4 {[%clk 0:00:18]} 28. Rf4 {[%clk 0:00:24]}  Rh2+ {[%clk 0:00:15]} 29. Kg1 {[%clk 0:00:24]}  Rhg2+ {[%clk 0:00:15]} 30. Kh1 {[%clk 0:00:24]}  Rh2+ {[%clk 0:00:11]} 31. Kg1 {[%clk 0:00:24]}  Rcg2+ {[%clk 0:00:12]} 32. Kf1 {[%clk 0:00:25]}  Rxg3 {[%clk 0:00:12]} 33. Rxe6 {[%clk 0:00:21]}  Rd3 {[%clk 0:00:08]} 34. Kg1 {[%clk 0:00:19]}  Rc2 {[%clk 0:00:04]} 35. g6 {[%clk 0:00:20]}  Rd1+ {[%clk 0:00:04]} 36. Rf1 {[%clk 0:00:20]}  Rxf1+ {[%clk 0:00:04]} 37. Kxf1 {[%clk 0:00:21]}  Kf8 {[%clk 0:00:04]} 38. Rxb6 {[%clk 0:00:21]}  Rc1+ {[%clk 0:00:04]} 39. Kg2 {[%clk 0:00:21]}  Rd1 {[%clk 0:00:05]} 40. Rb5 {[%clk 0:00:20]}  Rxd4 {[%clk 0:00:05]} 41. Rxa5 {[%clk 0:00:21]}  Ke7 {[%clk 0:00:05]} 42. Ra6 {[%clk 0:00:21]}  Rd2+ {[%clk 0:00:05]} 43. Kg3 {[%clk 0:00:22]}  Rd4 {[%clk 0:00:05]} 44. Rb6 {[%clk 0:00:22]}  Kd7 {[%clk 0:00:04]} 45. Rb7+ {[%clk 0:00:22]}  Ke6 {[%clk 0:00:04]} 46. Rxg7 {[%clk 0:00:23]}  Kf6 {[%clk 0:00:05]} 47. Rf7+ {[%clk 0:00:20]}  Kxg6 {[%clk 0:00:05]} 48. Rf4 {[%clk 0:00:21]}  Rxf4 {[%clk 0:00:03]} 49. Kxf4 {[%clk 0:00:22]}  Kh5 {[%clk 0:00:03]} 50. a4 {[%clk 0:00:19]}  Kh4 {[%clk 0:00:04]} 51. a5 {[%clk 0:00:20]}  g3 {[%clk 0:00:04]} 52. a6 {[%clk 0:00:20]}  g2 {[%clk 0:00:05]} 53. a7 {[%clk 0:00:21]}  g1=Q {[%clk 0:00:05]} 54. a8=Q {[%clk 0:00:21]}  Qg3+ {[%clk 0:00:05]} 55. Kf5 {[%clk 0:00:21]}  Qg6+ {[%clk 0:00:05]} 56. Kxg6 {[%clk 0:00:21]} 1-0


[Site "https://www.chess.com"]

[Event "Titled Tuesday Blitz January 17 Late 2023"]
[White "Defend, Balint"]
[Black "Romero Ruscalleda, Josep"]
[WhiteFideId "17004853"]
[BlackFideId "2231859"]
[WhiteElo "1673"]
[BlackElo "2160"]
[Result "1-0"]
[Round "10"]
[TimeControl "180+2"]
[Date "2023.01.17"]
[WhiteClock "0:01:40"]
[BlackClock "0:01:35"]

1. e4 {[%clk 0:03:00]}  g6 {[%clk 0:03:00]} 2. d4 {[%clk 0:02:54]}  Bg7 {[%clk 0:03:01]} 3. Bc4 {[%clk 0:02:50]}  d6 {[%clk 0:03:01]} 4. Nf3 {[%clk 0:02:49]}  e6 {[%clk 0:03:00]} 5. Bb3 {[%clk 0:02:49]}  Ne7 {[%clk 0:03:00]} 6. O-O {[%clk 0:02:48]}  O-O {[%clk 0:03:00]} 7. h4 {[%clk 0:02:47]}  Nbc6 {[%clk 0:02:54]} 8. h5 {[%clk 0:02:46]}  Na5 {[%clk 0:02:46]} 9. Bg5 {[%clk 0:02:22]}  Nxb3 {[%clk 0:02:42]} 10. axb3 {[%clk 0:02:22]}  b6 {[%clk 0:02:37]} 11. Qd2 {[%clk 0:02:19]}  Bb7 {[%clk 0:02:36]} 12. Nc3 {[%clk 0:02:18]}  f6 {[%clk 0:02:31]} 13. Bh6 {[%clk 0:02:10]}  f5 {[%clk 0:02:26]} 14. Bxg7 {[%clk 0:02:03]}  Kxg7 {[%clk 0:02:26]} 15. Ng5 {[%clk 0:02:03]}  Qd7 {[%clk 0:02:19]} 16. d5 {[%clk 0:01:58]}  exd5 {[%clk 0:02:05]} 17. exd5 {[%clk 0:01:58]}  Rf6 {[%clk 0:01:38]} 18. Qd4 {[%clk 0:01:49]}  Ng8 {[%clk 0:01:37]} 19. Ne6+ {[%clk 0:01:40]}  Kh6 {[%clk 0:01:35]} 20. Qf4+ {[%clk 0:01:39]}  g5 {[%clk 0:01:35]} 21. Qxg5# {[%clk 0:01:40]} 1-0


[Site "https://www.chess.com"]